bitfinex/quotes_ETHUSD_20260119
["timestamp","ask_amount","ask_price","bid_price","bid_amount"]
[1768796272287,0.91488331,3209.1,3208.7,3.11651597]
[1768796272971,0.001,3209.1,3208.7,4.08139188]
[1768796274395,0.001,3209.1,3208.8,0.96487591]
[1768796279214,0.001,3209.1,3208.8,4.08129655]
[1768796279387,0.001,3209.1,3208.8,0.96487591]
[1768796280285,0.001,3209.1,3208.8,4.08130241]
[1768796281514,0.001,3209.1,3208.7,4.08136347]
[1768796281712,0.96463141,3209.0,3208.6,3.63059244]
[1768796282718,0.001,3209.1,3208.7,0.96487591]
[1768796283216,0.96563141,3209.1,3208.6,3.63059244]
[1768796283716,0.96563141,3209.1,3208.6,4.59546835]
[1768796288548,0.96563141,3209.1,3208.6,3.63061704]
[1768796291247,0.001,3208.8,3208.6,3.63061704]
[1768796291553,0.001,3208.8,3208.6,4.40184717]
[1768796292447,0.001,3208.8,3208.6,1.28523013]
[1768796292636,0.001,3208.8,3208.6,5.36672559]
[1768796293460,0.001,3208.8,3208.6,2.25010604]
[1768796293820,0.001,3208.8,3208.6,1.47887591]
[1768796294155,0.001,3208.8,3208.6,4.59547483]
[1768796295051,0.001,3208.8,3208.6,1.47887591]
[1768796295861,0.001,3208.8,3208.6,4.59547801]
[1768796296361,0.001,3208.8,3208.4,0.96487591]
[1768796296526,0.96463141,3208.6,3207.9,3.1172228]
[1768796296720,0.96463141,3208.6,3207.9,3.6312228]
[1768796297026,4.08129764,3208.6,3207.9,0.514]
[1768796297230,0.96463141,3208.5,3208.0,0.514]
[1768796298946,0.96463141,3208.5,3208.0,1.47887591]
[1768796299271,0.96463141,3208.5,3208.0,4.59604559]
[1768796299633,0.96463141,3208.5,3208.0,1.47887591]
[1768796300743,0.96290206,3208.5,3208.0,1.47887591]
[1768796300960,0.96290206,3208.5,3208.0,1.93849026]
[1768796301352,0.96290206,3208.5,3208.0,0.97361435]
[1768796302665,0.96290206,3208.5,3208.1,0.97990093]
[1768796303784,0.96290206,3208.5,3208.0,0.97361435]
[1768796303937,3.11672757,3208.5,3208.0,0.97361435]
[1768796304136,0.99857255,3208.4,3208.0,0.97361435]
[1768796305763,0.99857255,3208.4,3208.0,0.514]
[1768796306842,0.99510827,3208.4,3208.0,0.514]
[1768796307650,0.99857255,3208.6,3208.0,1.49390093]
[1768796307850,4.11522368,3208.6,3208.1,0.97990093]
[1768796308051,0.99857255,3208.5,3208.0,0.514]
[1768796309163,0.99857255,3208.5,3208.0,1.49390093]
[1768796311065,0.001,3208.8,3208.1,0.97990093]
[1768796311270,3.11743811,3208.8,3208.1,0.97990093]
[1768796311567,4.11601066,3208.8,3208.1,0.97990093]
[1768796311752,0.99857255,3208.7,3208.1,0.97990093]
[1768796314075,0.99857255,3208.7,3208.3,0.002]
[1768796314276,0.99857255,3208.7,3208.3,0.98190093]
[1768796314464,0.99857255,3208.7,3208.3,1.39180121]
[1768796315165,0.99857255,3208.7,3208.3,0.41190028]
[1768796317776,0.99857255,3208.7,3208.3,1.39180121]
[1768796318548,0.99857255,3208.7,3208.3,0.41190028]
[1768796320845,0.001,3208.8,3208.4,0.514]
[1768796321048,5.83260221,3209.8,3208.8,0.96513097]
[1768796321049,0.92257149,3209.8,3208.8,0.96513097]
[1768796321280,3.11591531,3210.4,3209.1,0.96513097]
[1768796321281,0.92257149,3210.0,3209.1,0.96513097]
[1768796321451,0.92257149,3210.0,3209.3,0.96513097]
[1768796322351,4.03783929,3210.0,3209.3,0.96513097]
[1768796322544,0.92257149,3210.0,3209.4,0.96513097]
[1768796322749,0.92257149,3210.0,3209.5,0.96513097]
[1768796323349,3.115266,3210.0,3209.4,1.42464458]
[1768796323548,3.11498855,3210.3,3209.4,1.42464458]
[1768796323549,0.92257149,3209.9,3209.4,1.42464458]
[1768796324297,0.92257149,3209.9,3209.4,0.514]
[1768796325498,0.92257149,3209.8,3209.4,0.514]
[1768796325999,0.001,3209.6,3209.4,0.514]
[1768796326366,0.001,3209.6,3209.2,0.96513097]
[1768796326685,0.001,3209.6,3209.3,0.514]
[1768796327279,0.001,3209.6,3209.3,0.97352017]
[1768796328198,0.001,3209.6,3209.3,0.514]
[1768796328999,0.001,3209.6,3209.0,0.514]
[1768796329000,0.92357149,3209.6,3209.0,0.514]
[1768796329210,0.92357149,3209.6,3208.6,4.80513097]
[1768796329390,0.92357149,3209.6,3208.0,3.11914774]
[1768796329391,0.92357149,3209.6,3208.8,0.514]
[1768796330076,0.92257149,3209.5,3208.8,0.514]
[1768796330900,0.92257149,3209.3,3208.7,0.514]
[1768796332898,0.96942597,3209.2,3208.7,0.514]
[1768796334100,0.96942597,3209.2,3208.5,0.514]
[1768796335102,0.96942597,3209.0,3208.5,0.514]
[1768796335688,0.96942597,3209.0,3208.4,0.514]
[1768796337207,0.96942597,3208.9,3208.4,0.514]
[1768796337511,0.96942597,3208.9,3208.5,0.4606456]
[1768796337676,0.96942597,3209.2,3208.5,0.4606456]
[1768796337870,0.96942597,3209.2,3208.8,0.002]
[1768796338088,0.96942597,3209.2,3208.5,0.002]
[1768796338286,0.96942597,3209.0,3208.5,0.002]
[1768796339310,0.96942597,3208.9,3208.5,0.002]
[1768796339712,0.96942597,3208.9,3208.5,0.97554102]
[1768796340209,3.11617995,3209.1,3208.5,0.97554102]
[1768796340409,0.96942597,3209.0,3208.5,0.97554102]
[1768796341613,4.08567389,3209.0,3208.5,0.97554102]
[1768796343212,0.96942597,3209.4,3208.6,0.97354102]
[1768796343978,0.96942597,3209.2,3208.6,0.97354102]
[1768796345580,0.97042597,3209.6,3208.7,0.97354102]
[1768796345787,4.08518333,3209.5,3208.9,0.97354102]
[1768796347308,3.11575736,3209.5,3208.9,0.97354102]
[1768796347511,4.08518333,3209.5,3208.9,0.97354102]
[1768796347715,0.001,3209.6,3209.0,0.97354102]
[1768796347883,0.001,3209.6,3209.3,0.97354102]
[1768796352624,0.001,3209.6,3209.4,0.97354102]
[1768796352827,3.11499004,3210.3,3209.4,0.97354102]
[1768796352828,0.96942597,3210.3,3209.4,0.97354102]
[1768796354510,0.96942597,3210.3,3209.2,4.60356877]
[1768796354706,0.96942597,3210.1,3209.3,4.79619627]
[1768796355523,0.96942597,3210.1,3209.3,3.82265525]
[1768796355715,0.96942597,3210.1,3209.4,0.97354102]
[1768796356113,0.96942597,3210.0,3209.3,4.79619627]
[1768796356321,0.96942597,3210.0,3209.4,0.53101963]
[1768796357631,0.96942597,3210.0,3209.5,0.97354102]
[1768796357840,0.96942597,3210.0,3209.6,0.514]
[1768796359340,0.96942597,3210.0,3209.4,0.514]
[1768796359502,0.96942597,3210.0,3209.4,3.62984475]
[1768796359704,0.96942597,3210.0,3209.4,0.514]
[1768796359905,0.96942597,3209.9,3209.4,0.514]
[1768796360797,0.96942597,3209.9,3209.4,4.60337581]
[1768796360999,0.96942597,3209.9,3209.4,5.37531751]
[1768796363040,0.82042597,3209.9,3209.4,5.37531751]
[1768796364238,0.82042597,3209.9,3209.5,0.97713895]
[1768796366339,0.82042597,3209.9,3209.5,4.09288803]
[1768796366910,0.82042597,3209.9,3209.5,0.97713895]
[1768796367638,0.82042597,3209.9,3209.4,1.2859417]
[1768796367840,0.82042597,3209.9,3209.5,0.4401843]
[1768796368144,0.82042597,3209.9,3209.4,2.26308065]
[1768796369016,0.82042597,3209.9,3209.4,5.37891466]
[1768796371210,0.82042597,3209.9,3209.4,1.2859417]
[1768796371410,0.82042597,3209.9,3209.4,0.514]
[1768796371944,0.82042597,3209.9,3209.4,4.60696037]
[1768796372832,0.95022555,3210.0,3209.5,0.97713895]
[1768796373742,0.95022555,3210.0,3209.4,6.74566861]
[1768796375040,0.95022555,3210.0,3209.7,0.002]
[1768796384154,0.9033804,3210.2,3209.7,0.93949334]
[1768796384360,0.9043804,3210.4,3209.7,0.93949334]
[1768796384536,0.9033804,3210.2,3209.7,4.05504503]
[1768796385352,0.9033804,3210.2,3209.8,0.514]
[1768796386160,0.9033804,3210.2,3209.8,1.45149334]
[1768796387665,0.9043804,3210.4,3209.9,0.93749334]
[1768796389567,0.9043804,3210.4,3209.7,0.93949334]
[1768796389863,0.9033804,3210.2,3209.8,0.514]
[1768796391681,5.82826681,3210.9,3209.8,0.514]
[1768796391682,1.22569486,3212.4,3210.0,0.49509518]
[1768796391869,0.9033804,3212.8,3211.9,1.41812009]
[1768796392082,0.9033804,3212.8,3210.7,5.82726681]
[1768796392083,0.9033804,3212.6,3210.7,5.82726681]
[1768796392227,0.29179084,3212.7,3211.6,0.49157503]
[1768796392228,0.9033804,3212.4,3211.6,0.49157503]
[1768796392430,0.9033804,3212.1,3210.2,5.82726681]
[1768796392679,5.82726681,3212.2,3209.9,1.42578356]
[1768796392680,0.98409792,3211.8,3210.8,0.9345445]
[1768796392974,0.98409792,3211.8,3210.9,0.514]
[1768796393672,0.98409792,3211.7,3210.5,6.22955924]
[1768796393857,0.98409792,3211.7,3210.9,0.514]
[1768796394165,0.98409792,3211.7,3210.8,0.514]
[1768796394367,0.98409792,3211.5,3210.8,0.514]
[1768796394579,0.98409792,3211.5,3209.9,7.12505037]
[1768796394580,0.98409792,3211.5,3210.6,0.514]
[1768796395368,0.98409792,3211.5,3210.4,3.62885571]
[1768796395738,0.98409792,3211.4,3210.4,3.62885571]
[1768796397266,0.98409792,3211.3,3210.4,3.62885571]
[1768796397663,0.98409792,3211.3,3210.4,4.39671284]
[1768796399090,0.98409792,3211.1,3210.2,6.23014142]
[1768796399688,0.98409792,3211.1,3210.2,3.11507071]
[1768796401079,0.98409792,3211.0,3210.1,0.002]
[1768796403055,0.98409792,3210.8,3210.1,0.002]
[1768796403280,0.98409792,3210.8,3210.3,3.11497367]
[1768796403975,0.98409792,3210.8,3210.2,3.78959359]
[1768796405552,0.98409792,3210.8,3210.1,3.11715576]
[1768796407558,0.98409792,3210.8,3210.1,0.002]
[1768796411084,0.98409792,3210.7,3210.1,0.002]
[1768796411284,0.98409792,3210.7,3210.4,0.002]
[1768796416966,0.365,3211.0,3210.5,5.82726681]
[1768796417168,0.365,3211.0,3210.4,0.002]
[1768796417169,0.216,3211.0,3210.7,0.96326967]
[1768796417369,0.365,3211.1,3210.7,0.96326967]
[1768796417570,1.49809792,3211.2,3210.8,4.07775827]
[1768796417791,1.49809792,3211.2,3210.8,7.19224687]
[1768796418088,1.49809792,3211.2,3210.8,4.79698296]
[1768796418794,1.49809792,3211.2,3210.6,0.96326967]
[1768796418795,0.98409792,3211.1,3210.6,0.96326967]
[1768796418962,0.98409792,3211.1,3210.6,4.07794145]
[1768796419997,0.98409792,3211.1,3210.6,3.11467409]
[1768796420187,0.98409792,3211.1,3210.4,0.002]
[1768796420390,0.98409792,3211.0,3210.4,3.11686524]
[1768796420591,0.98409792,3211.0,3210.4,4.22038074]
[1768796420772,0.98409792,3211.8,3210.7,0.96326967]
[1768796420971,0.98409792,3211.6,3210.7,0.96326967]
[1768796422562,0.95125403,3211.5,3210.8,3.1144886]
[1768796422761,0.95125403,3211.5,3210.9,0.40777583]
[1768796422964,0.95125403,3211.5,3210.8,4.08229401]
[1768796423889,0.95125403,3211.5,3210.9,0.96780541]
[1768796424081,6.39652457,3212.9,3210.9,0.96780541]
[1768796424082,1.46525403,3211.7,3210.9,0.96780541]
[1768796424281,0.95125403,3211.6,3210.9,0.96780541]
[1768796424492,0.95125403,3211.6,3211.1,0.96780541]
[1768796424863,0.95125403,3211.6,3211.1,4.08199204]
[1768796425395,0.95125403,3211.6,3211.1,0.96780541]
[1768796425691,0.95125403,3211.6,3210.9,3.114326]
[1768796425882,0.95125403,3211.5,3210.8,3.11445058]
[1768796427159,0.95125403,3211.5,3210.8,3.1144886]
[1768796428699,0.95125403,3211.5,3210.8,6.2289772]
[1768796428901,0.95125403,3211.5,3210.8,6.99995546]
[1768796429276,0.95125403,3211.5,3210.8,7.96776087]
[1768796432080,0.95125403,3211.5,3210.8,4.85327227]
[1768796432481,0.95125403,3211.5,3210.8,3.1144886]
[1768796433768,0.95125403,3211.4,3210.7,3.11454699]
[1768796435689,0.95125403,3211.4,3210.5,6.95477103]
[1768796435690,0.95125403,3211.3,3210.5,3.84]
[1768796435873,0.95125403,3211.1,3210.5,3.84]
[1768796436198,0.95125403,3211.1,3210.4,0.002]
[1768796436600,0.95125403,3211.1,3210.6,0.002]
[1768796438004,0.95125403,3211.0,3210.6,0.002]
[1768796439017,0.95125403,3211.0,3210.1,0.002]
[1768796439311,3.11420955,3211.1,3210.1,0.002]
[1768796439312,0.92234524,3210.8,3210.1,0.002]
[1768796439512,0.92234524,3210.7,3210.1,0.002]
[1768796439742,0.92234524,3210.5,3210.1,0.002]
[1768796439936,0.92234524,3210.3,3210.0,0.002]
[1768796441994,0.95740006,3210.1,3209.4,0.002]
[1768796442320,0.95740006,3209.9,3209.4,0.002]
[1768796447796,0.95740006,3209.9,3209.4,0.94978536]
[1768796447995,0.95740006,3209.9,3209.4,0.002]
[1768796448805,4.07277251,3209.9,3209.7,0.002]
[1768796449098,0.95740006,3209.8,3209.7,0.002]
[1768796455339,0.91863135,3209.7,3209.4,0.002]
[1768796455501,0.91863135,3209.7,3209.0,0.002]
[1768796456130,0.91863135,3209.5,3209.0,0.002]
[1768796457300,0.91863135,3209.3,3209.0,0.002]
[1768796457537,0.91863135,3209.1,3208.8,0.002]
[1768796460269,0.91863135,3209.5,3208.9,0.93861467]
[1768796460446,0.91863135,3209.4,3208.9,0.93861467]
[1768796460642,0.91863135,3209.4,3208.8,0.002]
[1768796461561,0.91863135,3209.4,3208.5,0.94061467]
[1768796461562,0.91863135,3208.8,3208.5,0.002]
[1768796462171,0.514,3208.9,3208.5,0.002]
[1768796462349,0.514,3209.1,3208.6,0.93861467]
[1768796462753,1.43263135,3209.2,3208.6,0.93861467]
[1768796463368,1.43263135,3209.2,3208.5,0.002]
[1768796463369,0.91863135,3209.1,3208.5,0.002]
[1768796463677,0.91863135,3209.1,3208.5,0.94061467]
[1768796464346,0.91863135,3209.1,3208.5,1.34655745]
[1768796464947,0.91863135,3209.1,3208.5,4.46327738]
[1768796465773,0.91863135,3209.1,3208.5,1.34655745]
[1768796467632,0.91863135,3209.1,3208.5,4.46324277]
[1768796467837,0.91863135,3209.1,3208.6,0.93861467]
[1768796469991,0.91863135,3209.1,3208.7,0.93861467]
[1768796471295,3.11579199,3209.5,3208.7,0.93861467]
[1768796471296,0.514,3209.5,3208.8,0.93861467]
[1768796471863,1.43263135,3209.5,3208.9,0.93861467]
[1768796472126,0.91863135,3209.4,3208.9,0.93861467]
[1768796472766,0.91863135,3209.6,3208.9,0.93861467]
[1768796472961,0.514,3209.5,3209.1,0.93861467]
[1768796473398,1.43263135,3209.5,3209.1,0.93861467]
[1768796475274,1.43263135,3209.5,3209.0,4.77198129]
[1768796476176,0.514,3209.5,3209.1,4.05473583]
[1768796478198,1.43263135,3209.5,3209.1,4.05473583]
[1768796478795,1.43263135,3209.5,3209.1,0.93861467]
[1768796479097,1.43263135,3209.5,3209.1,4.05474264]
[1768796484810,0.001,3209.2,3209.1,4.05474264]
[1768796485007,1.43263135,3209.5,3209.1,4.84356192]
[1768796485401,1.43263135,3209.5,3209.1,4.05474264]
[1768796487830,0.514,3209.5,3209.1,7.17088112]
[1768796488129,0.514,3209.5,3209.1,4.05474264]
[1768796488426,0.93038613,3209.8,3209.2,0.91496337]
[1768796488609,0.93038613,3210.6,3209.2,0.91496337]
[1768796488809,6.2291712,3210.7,3209.4,0.91496337]
[1768796488810,0.93038613,3210.4,3209.4,0.91496337]
[1768796491633,0.93038613,3210.2,3209.5,0.91496337]
[1768796492728,8.93622473,3210.8,3209.5,0.91496337]
[1768796492729,0.93038613,3210.8,3209.5,0.91496337]
[1768796493044,0.93038613,3210.6,3209.7,0.91496337]
[1768796493230,1.44438613,3210.6,3209.7,0.91496337]
[1768796493425,0.93038613,3210.6,3209.7,0.91496337]
[1768796493627,0.514,3210.6,3209.9,0.91496337]
[1768796496544,0.001,3210.5,3210.0,3.11526479]
[1768796496740,0.001,3210.5,3210.1,1.31798619]
[1768796497756,0.001,3210.5,3210.2,0.91496337]
[1768796499156,0.001,3210.5,3210.2,4.02999688]
[1768796499354,0.001,3210.5,3210.2,0.91496337]
[1768796499553,0.98983994,3210.4,3209.6,4.05736864]
[1768796499853,0.98983994,3210.4,3209.6,4.05743934]
[1768796500354,0.98983994,3210.4,3209.6,0.94181187]
[1768796500650,0.98983994,3210.4,3209.6,4.05743892]
[1768796501158,4.10474934,3210.4,3209.6,4.05743892]
[1768796501331,0.98983994,3210.3,3209.6,0.94181187]
[1768796501518,0.98983994,3210.1,3209.6,0.94181187]
[1768796505950,0.98983994,3210.1,3209.5,3.11568833]
[1768796506949,0.98983994,3210.1,3209.4,4.05761716]
[1768796507154,0.98983994,3210.0,3209.2,4.05781755]
[1768796507316,0.98983994,3210.0,3209.3,3.11592241]
[1768796507929,0.98983994,3210.0,3209.4,0.94181187]
[1768796510323,0.98983994,3210.0,3209.5,4.05756198]
[1768796512755,0.98983994,3210.0,3209.6,0.90391209]
[1768796513459,0.98983994,3210.0,3209.3,3.11592552]
[1768796513460,0.98983994,3210.0,3209.4,4.01972594]
[1768796514479,0.98983994,3210.0,3209.4,0.90391209]
[1768796514649,0.94488075,3209.9,3209.2,0.90391209]
[1768796514976,0.94488075,3209.9,3209.4,3.11583524]
[1768796515540,0.94488075,3209.9,3209.4,4.01974733]
[1768796515762,0.94488075,3209.9,3209.4,4.73331648]
[1768796516278,0.94488075,3209.9,3209.4,3.82940439]
[1768796516639,0.94488075,3209.9,3209.4,4.73331648]
[1768796519473,0.94488075,3210.1,3209.5,0.90391209]
[1768796519711,1.45888075,3210.1,3209.5,0.90391209]
[1768796520488,0.001,3209.7,3209.5,0.90391209]
[1768796520701,1.45888075,3210.1,3209.6,0.90391209]
[1768796521710,1.45888075,3210.1,3209.6,4.01955734]
[1768796522076,0.94488075,3210.0,3209.4,4.01970075]
[1768796522636,0.94488075,3210.0,3209.0,0.90391209]
[1768796522774,3.62919065,3210.1,3208.9,0.514]
[1768796522775,0.94488075,3209.7,3208.9,0.514]
[1768796522974,0.94488075,3209.7,3208.7,0.90391209]
[1768796522975,0.94488075,3209.6,3208.7,0.90391209]
[1768796523203,0.94488075,3209.6,3208.8,3.11642608]
[1768796524317,0.514,3209.7,3208.7,4.02041445]
[1768796524318,0.94488075,3209.4,3208.7,4.02041445]
[1768796524491,0.94488075,3209.4,3208.7,5.11832686]
[1768796525378,0.94488075,3209.2,3208.5,0.002]
[1768796527681,0.94488075,3209.2,3208.5,3.11871178]
[1768796527880,0.94488075,3209.2,3208.5,0.002]
[1768796527881,0.94488075,3209.1,3208.5,0.002]
[1768796528384,3.11604218,3209.2,3208.5,0.002]
[1768796528385,0.94488075,3208.9,3208.5,0.002]
[1768796528577,0.94488075,3208.7,3208.5,0.002]
[1768796528782,0.514,3209.0,3208.5,0.90591209]
[1768796529012,1.45888075,3209.1,3208.5,0.90591209]
[1768796529219,1.40888075,3209.1,3208.6,0.90391209]
[1768796529881,0.514,3209.1,3208.7,0.90391209]
[1768796530347,1.45888075,3209.1,3208.7,0.90391209]
[1768796530532,1.45888075,3209.1,3208.5,0.90591209]
[1768796530533,0.94488075,3209.0,3208.5,0.90591209]
[1768796531051,0.94488075,3209.0,3208.5,0.002]
[1768796532318,0.94488075,3209.0,3208.8,0.002]
[1768796534636,1.45888075,3209.0,3208.8,0.002]
[1768796534842,0.94488075,3208.9,3208.8,0.002]
[1768796537746,0.514,3209.0,3208.8,0.002]
[1768796538253,1.45888075,3209.0,3208.8,0.002]
[1768796539017,3.11594642,3209.3,3208.8,0.002]
[1768796539223,0.94488075,3209.4,3208.8,0.90591209]
[1768796539423,0.514,3209.3,3208.8,0.90591209]
[1768796540648,0.94488075,3209.4,3208.8,0.90591209]
[1768796540859,0.514,3209.4,3209.0,0.90391209]
[1768796541753,5.82498272,3210.3,3209.0,0.90391209]
[1768796541754,0.94488075,3210.0,3209.0,0.90391209]
[1768796541952,1.45888075,3209.9,3209.2,0.90391209]
[1768796542156,0.94488075,3209.8,3209.2,0.90391209]
[1768796542730,0.9369065,3209.9,3209.2,0.90391209]
[1768796542933,0.9369065,3209.9,3209.4,0.93969555]
[1768796543468,0.9369065,3209.9,3209.4,1.65685606]
[1768796543856,0.9369065,3209.9,3209.4,0.71716051]
[1768796545161,0.9369065,3209.9,3209.4,3.83294379]
[1768796545339,3.11598974,3210.3,3209.4,3.83294379]
[1768796545340,0.514,3210.0,3209.5,0.93969555]
[1768796545662,0.9369065,3209.9,3209.4,3.83294379]
[1768796547668,0.9369065,3209.9,3209.4,4.77263934]
[1768796547837,0.9369065,3209.9,3209.5,1.7285539]
[1768796548036,0.9369065,3209.9,3209.4,3.11578328]
[1768796548964,0.9369065,3209.8,3209.0,0.93969555]
[1768796549170,0.9369065,3209.8,3209.0,3.11622115]
[1768796550154,0.9369065,3209.8,3208.8,4.05812367]
[1768796550155,0.9369065,3209.7,3208.8,0.94169555]
[1768796550345,0.9369065,3209.7,3208.8,0.002]
[1768796550346,0.9369065,3209.5,3208.8,0.002]
[1768796550545,0.9369065,3209.2,3208.5,0.002]
[1768796550761,5.82398272,3209.3,3208.5,0.002]
[1768796550762,0.9369065,3209.0,3208.5,0.002]
[1768796551653,0.9369065,3208.8,3208.3,0.002]
[1768796551853,0.9369065,3208.6,3208.3,0.002]
[1768796553777,1.52493307,3211.5,3208.3,0.002]
[1768796553778,1.4509065,3208.9,3208.3,0.94169555]
[1768796553966,0.9369065,3208.8,3208.3,0.94169555]
[1768796555781,0.9369065,3208.8,3208.6,0.002]
[1768796557621,0.9369065,3209.1,3208.6,0.002]
[1768796557756,1.4509065,3209.1,3208.6,0.94169555]
[1768796559199,0.9369065,3209.1,3208.7,0.93491463]
[1768796559354,0.514,3209.2,3208.7,0.93491463]
[1768796559553,1.49870207,3209.2,3208.7,0.93491463]
[1768796560369,0.98470207,3209.1,3208.6,0.002]
[1768796560571,0.98470207,3209.1,3208.3,3.11887712]
[1768796560572,0.98470207,3209.0,3208.3,0.002]
[1768796562898,0.98470207,3208.8,3208.3,0.002]
[1768796563202,0.98470207,3208.6,3208.3,0.002]
[1768796565075,0.98470207,3208.6,3208.1,0.002]
[1768796565076,0.98470207,3208.5,3208.1,0.002]
[1768796565285,12.06431102,3208.6,3207.6,3.1175325]
[1768796565286,0.98470207,3208.3,3207.6,0.93491463]
[1768796565588,0.98470207,3208.3,3207.4,0.002]
[1768796565755,0.98470207,3208.3,3207.5,0.93691463]
[1768796565971,0.98470207,3208.2,3207.5,0.93691463]
[1768796566780,0.98470207,3208.2,3207.6,0.93491463]
[1768796567154,0.98470207,3208.2,3207.6,4.05249923]
[1768796567155,0.98470207,3208.1,3207.6,4.05249923]
[1768796567774,1.49870207,3208.3,3207.7,0.93491463]
[1768796567952,0.514,3208.3,3207.7,0.93491463]
[1768796568559,1.49870207,3208.3,3207.7,0.93491463]
[1768796572196,0.98470207,3208.3,3207.7,0.93491463]
[1768796572395,1.49970207,3208.3,3207.7,0.93491463]
[1768796572965,4.61663811,3208.3,3207.7,0.93491463]
[1768796573492,1.49970207,3208.3,3207.7,0.93491463]
[1768796575377,0.99088418,3208.2,3207.7,0.93491463]
[1768796575776,0.515,3208.3,3207.8,0.97035946]
[1768796575980,1.50588418,3208.3,3207.8,0.97035946]
[1768796577596,1.50588418,3208.3,3207.6,3.11756782]
[1768796577597,0.99088418,3208.2,3207.6,0.97035946]
[1768796578098,0.99088418,3208.2,3207.7,0.97035946]
[1768796578710,4.10790191,3208.2,3207.7,0.97035946]
[1768796579083,0.99088418,3208.1,3207.6,0.97035946]
[1768796579280,1.50588418,3208.3,3207.7,0.97035946]
[1768796579481,4.62280932,3208.3,3207.7,0.97035946]
[1768796579684,1.50588418,3208.3,3208.0,0.002]
[1768796579886,1.96826046,3208.3,3208.0,0.002]
[1768796580182,0.99088418,3208.2,3208.0,0.002]
[1768796581176,0.99088418,3208.2,3207.6,0.002]
[1768796581391,0.99088418,3207.9,3207.5,0.002]
[1768796581573,5.83095358,3208.0,3207.5,0.002]
[1768796581574,1.67306796,3207.8,3207.5,0.002]
[1768796582308,0.97737628,3208.3,3207.5,0.002]
[1768796582309,0.001,3208.5,3207.6,0.97035946]
[1768796582672,0.99188418,3208.5,3207.6,0.97035946]
[1768796582870,0.001,3208.5,3207.6,0.97035946]
[1768796583298,4.10861007,3208.5,3207.6,0.97035946]
[1768796583476,0.99088418,3208.4,3207.6,0.97035946]
[1768796583915,0.99088418,3208.4,3207.7,6.23499702]
[1768796584109,0.001,3208.5,3207.9,0.97035946]
[1768796584302,0.99188418,3208.5,3207.9,0.97035946]
[1768796584705,0.99088418,3208.4,3207.9,0.97035946]
[1768796585283,0.99088418,3208.4,3207.9,0.65862572]
[1768796585611,0.99088418,3208.4,3207.6,0.74236418]
[1768796585816,0.99088418,3208.2,3207.6,0.74236418]
[1768796586024,0.99088418,3208.2,3207.6,3.85995878]
[1768796586206,0.99088418,3208.2,3207.6,0.74236418]
[1768796586721,0.99088418,3208.1,3207.5,0.002]
[1768796587838,0.99088418,3208.1,3207.5,3.11968586]
[1768796588001,0.99088418,3208.0,3207.5,0.002]
[1768796588197,0.99088418,3208.1,3207.5,0.74436418]
[1768796589913,0.99088418,3208.1,3207.6,0.74236418]
[1768796590428,0.99088418,3208.1,3207.5,0.74436418]
[1768796590613,0.99088418,3208.1,3207.5,3.8620439]
[1768796590829,0.515,3208.0,3207.6,0.74236418]
[1768796592347,3.117047,3208.2,3207.6,0.74236418]
[1768796592348,0.99088418,3208.2,3207.6,0.74236418]
[1768796592704,0.515,3208.2,3207.6,0.74236418]
[1768796592974,0.99088418,3208.1,3207.8,0.002]
[1768796593519,0.99088418,3208.0,3207.8,0.002]
[1768796593732,0.99088418,3207.9,3207.5,0.002]
[1768796594532,0.99088418,3207.7,3207.4,0.002]
[1768796595934,4.10842497,3207.7,3207.4,0.002]
[1768796596130,0.99088418,3207.6,3207.4,0.002]
[1768796597928,0.99088418,3207.5,3207.4,0.002]
[1768796598138,0.4623425,3207.6,3207.4,0.002]
[1768796598470,0.99088418,3207.7,3207.4,0.002]
[1768796598471,0.515,3207.7,3207.4,0.002]
[1768796599721,4.10829814,3207.8,3207.4,0.002]
[1768796599916,4.62329814,3207.8,3207.4,0.002]
[1768796600554,0.99088418,3207.7,3207.4,0.002]
[1768796603062,1.50588418,3207.7,3207.4,0.002]
[1768796603751,5.08572034,3207.7,3207.4,0.002]
[1768796603952,0.97732996,3207.7,3207.4,0.002]
[1768796604148,3.11701265,3208.2,3207.5,0.74436418]
[1768796604352,3.11701265,3208.2,3207.4,0.002]
[1768796604353,0.99115855,3208.0,3207.4,0.002]
[1768796604736,0.99115855,3207.8,3207.4,0.002]
[1768796605130,0.99115855,3207.6,3207.4,0.002]
[1768796606528,0.99115855,3207.6,3207.2,0.002]
[1768796606860,0.99115855,3207.4,3207.2,0.002]
[1768796609462,4.10896395,3207.4,3207.2,0.002]
[1768796609843,0.99115855,3207.4,3207.2,0.002]
[1768796610230,4.10896911,3207.4,3207.2,0.002]
[1768796611635,0.99115855,3207.4,3207.2,0.002]
[1768796612864,0.99115855,3207.6,3207.2,0.74636418]
[1768796613035,1.50615855,3207.6,3207.2,0.74636418]
[1768796613237,0.515,3207.6,3207.2,0.74636418]
[1768796613665,0.99115855,3207.5,3207.2,0.002]
[1768796621617,0.99115855,3207.5,3207.0,0.70979761]
[1768796621752,0.99115855,3207.5,3206.8,0.002]
[1768796621753,0.97193546,3207.4,3206.8,0.002]
[1768796622262,0.97193546,3207.4,3206.7,0.002]
[1768796623487,6.2354444,3207.5,3205.2,3.11991438]
[1768796623488,0.97193546,3206.7,3205.2,3.11991438]
[1768796623652,5.8359471,3206.8,3205.2,3.12993011]
[1768796623653,0.97193546,3206.3,3205.2,3.12993011]
[1768796623851,0.97193546,3206.1,3205.3,0.012]
[1768796624187,0.97193546,3206.1,3204.8,0.526]
[1768796624412,0.97193546,3206.1,3205.0,3.12004456]
[1768796624625,0.97193546,3206.1,3205.0,3.74407666]
[1768796624918,0.97193546,3206.1,3205.0,3.7441386]
[1768796625137,0.97193546,3206.1,3205.0,3.74414332]
[1768796625281,0.97193546,3206.1,3205.0,0.6240321]
[1768796625485,0.97193546,3206.1,3204.9,3.13222047]
[1768796625486,0.97193546,3206.1,3204.9,3.12022047]
[1768796625682,0.97193546,3205.9,3204.8,3.12029433]
[1768796626390,0.97193546,3205.9,3204.9,0.012]
[1768796628040,0.97193546,3205.7,3204.9,3.13219608]
[1768796628322,0.97193546,3205.6,3204.9,3.13219608]
[1768796628529,0.97193546,3205.6,3204.9,3.75744664]
[1768796628716,0.97193546,3205.6,3205.3,0.002]
[1768796630218,0.97193546,3205.6,3205.0,0.002]
[1768796630423,0.97193546,3205.5,3205.0,0.002]
[1768796632721,3.11876247,3206.4,3205.3,0.92564104]
[1768796632891,0.91164104,3206.2,3205.6,0.92564104]